{"text_format":"3","workbook":"xlsx","n_sheets":2,"sheets":["NÖVEKEDÉSI ADATOK","NÖVEKEDÉSI DIAGRAM"],"not_rendered":{"charts":1,"defined_names":3},"read":"whole","date_system":"1900"}

{"sheet":"NÖVEKEDÉSI ADATOK","index":0,"n_rows":23,"n_cols":8,"rows_kept":23,"merged":[[0,1,0,7],[1,2,1,7]]}
[null,"Gyermek növekedése "]
[null,"Gyermek neve:","Név"]
[null,"Életkor","Font","Uncia","Súly (font)","Súly\nSzázalék","Hossz (hüvelyk)","Hossz\nSzázalék"]
[null,"Születéskor",7,null,{"$f":"IF(COUNT(Adatok[[#This Row],[Font]:[Uncia]])>0,Adatok[[#This Row],[Font]]+(Adatok[[#This Row],[Uncia]]/16),NA())","v":7},40,19.5,70]
[null,"4 napos",6,8,{"$f":"IF(COUNT(Adatok[[#This Row],[Font]:[Uncia]])>0,Adatok[[#This Row],[Font]]+(Adatok[[#This Row],[Uncia]]/16),NA())","v":6.5},41,19.5,70]
[null,"7 napos",6,4.8,{"$f":"IF(COUNT(Adatok[[#This Row],[Font]:[Uncia]])>0,Adatok[[#This Row],[Font]]+(Adatok[[#This Row],[Uncia]]/16),NA())","v":6.3},42,20,71]
[null,"11 napos",6,9.6,{"$f":"IF(COUNT(Adatok[[#This Row],[Font]:[Uncia]])>0,Adatok[[#This Row],[Font]]+(Adatok[[#This Row],[Uncia]]/16),NA())","v":6.6},43,20,71]
[null,"14 napos",7,null,{"$f":"IF(COUNT(Adatok[[#This Row],[Font]:[Uncia]])>0,Adatok[[#This Row],[Font]]+(Adatok[[#This Row],[Uncia]]/16),NA())","v":7},44,20,71]
[null,"18 napos",7,12,{"$f":"IF(COUNT(Adatok[[#This Row],[Font]:[Uncia]])>0,Adatok[[#This Row],[Font]]+(Adatok[[#This Row],[Uncia]]/16),NA())","v":7.75},45,21,72]
[null,"21 napos",8,8,{"$f":"IF(COUNT(Adatok[[#This Row],[Font]:[Uncia]])>0,Adatok[[#This Row],[Font]]+(Adatok[[#This Row],[Uncia]]/16),NA())","v":8.5},46,21,72]
[null,"25 napos",null,null,{"$f":"IF(COUNT(Adatok[[#This Row],[Font]:[Uncia]])>0,Adatok[[#This Row],[Font]]+(Adatok[[#This Row],[Uncia]]/16),NA())","v":{"$error":"#N/A"}}]
[null,"28 napos",null,null,{"$f":"IF(COUNT(Adatok[[#This Row],[Font]:[Uncia]])>0,Adatok[[#This Row],[Font]]+(Adatok[[#This Row],[Uncia]]/16),NA())","v":{"$error":"#N/A"}}]
[null,"5 hetes",null,null,{"$f":"IF(COUNT(Adatok[[#This Row],[Font]:[Uncia]])>0,Adatok[[#This Row],[Font]]+(Adatok[[#This Row],[Uncia]]/16),NA())","v":{"$error":"#N/A"}}]
[null,"6 hetes",null,null,{"$f":"IF(COUNT(Adatok[[#This Row],[Font]:[Uncia]])>0,Adatok[[#This Row],[Font]]+(Adatok[[#This Row],[Uncia]]/16),NA())","v":{"$error":"#N/A"}}]
[null,"7 hetes",null,null,{"$f":"IF(COUNT(Adatok[[#This Row],[Font]:[Uncia]])>0,Adatok[[#This Row],[Font]]+(Adatok[[#This Row],[Uncia]]/16),NA())","v":{"$error":"#N/A"}}]
[null,"2 hónapos",null,null,{"$f":"IF(COUNT(Adatok[[#This Row],[Font]:[Uncia]])>0,Adatok[[#This Row],[Font]]+(Adatok[[#This Row],[Uncia]]/16),NA())","v":{"$error":"#N/A"}}]
[null,"3 hónapos",null,null,{"$f":"IF(COUNT(Adatok[[#This Row],[Font]:[Uncia]])>0,Adatok[[#This Row],[Font]]+(Adatok[[#This Row],[Uncia]]/16),NA())","v":{"$error":"#N/A"}}]
[null,"6 hónapos",null,null,{"$f":"IF(COUNT(Adatok[[#This Row],[Font]:[Uncia]])>0,Adatok[[#This Row],[Font]]+(Adatok[[#This Row],[Uncia]]/16),NA())","v":{"$error":"#N/A"}}]
[null,"9 hónapos",null,null,{"$f":"IF(COUNT(Adatok[[#This Row],[Font]:[Uncia]])>0,Adatok[[#This Row],[Font]]+(Adatok[[#This Row],[Uncia]]/16),NA())","v":{"$error":"#N/A"}}]
[null,"12 hónapos",null,null,{"$f":"IF(COUNT(Adatok[[#This Row],[Font]:[Uncia]])>0,Adatok[[#This Row],[Font]]+(Adatok[[#This Row],[Uncia]]/16),NA())","v":{"$error":"#N/A"}}]
[null,"18 hónapos",null,null,{"$f":"IF(COUNT(Adatok[[#This Row],[Font]:[Uncia]])>0,Adatok[[#This Row],[Font]]+(Adatok[[#This Row],[Uncia]]/16),NA())","v":{"$error":"#N/A"}}]
[null,"24 hónapos",null,null,{"$f":"IF(COUNT(Adatok[[#This Row],[Font]:[Uncia]])>0,Adatok[[#This Row],[Font]]+(Adatok[[#This Row],[Uncia]]/16),NA())","v":{"$error":"#N/A"}}]
[null,"36 hónapos",null,null,{"$f":"IF(COUNT(Adatok[[#This Row],[Font]:[Uncia]])>0,Adatok[[#This Row],[Font]]+(Adatok[[#This Row],[Uncia]]/16),NA())","v":{"$error":"#N/A"}}]

{"sheet":"NÖVEKEDÉSI DIAGRAM","index":1,"n_rows":1,"n_cols":2,"rows_kept":1,"merged":[[0,1,1,1]]}
[null,"GYERMEK NÖVEKEDÉSI DIAGRAMJA"]